bitfinex/quotes_SOLUSD_20250722
["timestamp","ask_amount","ask_price","bid_price","bid_amount"]
[1753153622473,37.26,202.1,202.08,0.03]
[1753153622782,4.94608764,202.18,202.09,7.71359265]
[1753153623097,37.26,202.17,202.09,0.69]
[1753153623386,37.26,202.17,202.12,7.02359265]
[1753153623558,7.02359265,202.19,202.13,7.02359265]
[1753153623759,37.26,202.18,202.13,7.02359265]
[1753153623976,7.02359265,202.19,202.13,7.02359265]
[1753153624166,37.26,202.18,202.13,7.02359265]
[1753153624471,37.26,202.18,202.14,7.02359265]
[1753153624681,2.57855517,202.25,202.16,7.02359265]
[1753153624846,7.02359265,202.23,202.16,7.02359265]
[1753153625269,7.02359265,202.23,202.14,0.69]
[1753153625270,37.26,202.22,202.17,7.02359265]
[1753153625569,7.02359265,202.23,202.14,0.69]
[1753153625756,7.02359265,202.2,202.13,26.0]
[1753153626073,7.02359265,202.2,202.13,7.02359265]
[1753153626273,37.26,202.19,202.14,7.02359265]
[1753153626569,7.02359265,202.17,202.08,88.63]
[1753153626753,7.02359265,202.16,202.1,7.02359265]
[1753153626957,7.02359265,202.15,202.08,7.05359265]
[1753153627269,44.28359265,202.14,202.08,7.05359265]
[1753153627447,37.26,202.13,202.08,7.05359265]
[1753153628171,37.26,202.13,202.08,0.03]
[1753153628577,42.20742668,202.13,202.08,7.05359265]
[1753153628958,37.26,202.13,202.08,7.05359265]
[1753153629660,37.26,202.13,202.09,7.02359265]
[1753153629977,37.26,202.13,202.08,0.03]
[1753153630168,37.26,202.13,202.09,7.02359265]
[1753153630367,37.26,202.13,202.09,11.97182032]
[1753153630573,26.72,202.19,202.12,7.02359265]
[1753153630764,37.26,202.18,202.13,7.02359265]
[1753153631071,37.98,202.18,202.12,33.02359265]
[1753153631274,37.98,202.18,202.12,26.0]
[1753153631465,37.26,202.18,202.14,7.02359265]
[1753153631661,37.26,202.18,202.13,7.02359265]
[1753153631871,37.26,202.18,202.12,26.0]
[1753153632065,7.74359265,202.17,202.11,7.02359265]
[1753153632261,7.02359265,202.15,202.09,7.02359265]
[1753153632463,11.97047648,202.15,202.09,33.02359265]
[1753153632666,44.28359265,202.14,202.08,7.05359265]
[1753153632867,7.02359265,202.13,202.08,0.03]
[1753153633271,37.26,202.14,202.1,7.02359265]
[1753153633472,12.36468239,202.19,202.08,0.03]
[1753153633473,7.02359265,202.2,202.13,7.02359265]
[1753153633687,0.72,202.21,202.18,7.02359265]
[1753153633899,0.72,202.21,202.11,26.66]
[1753153633900,38.15820673,202.28,202.2,7.02359265]
[1753153634070,38.15820673,202.28,202.15,26.0]
[1753153634071,43.32359265,202.28,202.22,7.02359265]
[1753153634386,43.32359265,202.28,202.2,7.02359265]
[1753153634387,7.02359265,202.26,202.2,7.02359265]
[1753153634563,4.94437577,202.25,202.2,7.02359265]
[1753153634970,4.94413591,202.26,202.21,7.02359265]
[1753153635190,11.96772856,202.26,202.2,7.02359265]
[1753153635501,42.18392689,202.27,202.21,7.02359265]
[1753153635788,51.72765103,202.27,202.21,7.02359265]
[1753153636794,7.02359265,202.26,202.2,7.02359265]
[1753153637094,51.72765103,202.27,202.21,7.02359265]
[1753153637791,36.3,202.28,202.17,5.60609282]
[1753153637792,37.24,202.26,202.23,7.02359265]
[1753153637992,37.24,202.25,202.23,7.02359265]
[1753153638167,37.24,202.25,202.18,4.94608764]
[1753153638168,37.24,202.27,202.24,7.02359265]
[1753153638368,38.6867106,202.31,202.25,7.02359265]
[1753153638696,37.24,202.28,202.24,7.02359265]
[1753153638875,37.24,202.28,202.24,95.62359265]
[1753153639080,37.24,202.3,202.26,7.02359265]
[1753153640193,37.24,202.3,202.27,7.02359265]
[1753153640397,37.24,202.3,202.29,7.02359265]
[1753153640698,37.22,202.34,202.29,7.68359265]
[1753153640927,37.22,202.34,202.31,7.02359265]
[1753153641077,37.22,202.34,202.3,7.02359265]
[1753153641497,37.22,202.34,202.31,7.02359265]
[1753153641668,0.06,202.37,202.33,7.02359265]
[1753153641868,37.28,202.37,202.35,7.02359265]
[1753153642279,37.28,202.37,202.33,4.94242079]
[1753153642493,37.28,202.37,202.35,7.02359265]
[1753153642693,37.28,202.37,202.28,164.19101159]
[1753153642694,7.74359265,202.36,202.28,7.02359265]
[1753153642903,7.02359265,202.34,202.28,7.02359265]
[1753153643085,7.02359265,202.31,202.26,26.0]
[1753153643476,7.02359265,202.29,202.22,37.22]
[1753153643680,7.02359265,202.28,202.22,7.02359265]
[1753153643892,7.02359265,202.28,202.18,6.781]
[1753153644083,7.02359265,202.25,202.18,7.02359265]
[1753153644283,4.94486475,202.23,202.17,7.02359265]
[1753153644491,7.02359265,202.22,202.16,7.02359265]
[1753153644792,11.9684574,202.23,202.17,7.02359265]
[1753153644993,44.22359265,202.24,202.16,4.94644248]
[1753153645200,44.22359265,202.24,202.16,10.49014502]
[1753153645201,10.49014502,202.22,202.16,10.49014502]
[1753153645521,42.86474054,202.24,202.15,0.66]
[1753153645522,10.49014502,202.21,202.15,10.49014502]
[1753153645977,10.49014502,202.22,202.16,10.49014502]
[1753153646182,10.49014502,202.23,202.16,10.49014502]
[1753153646391,4.94510928,202.22,202.16,10.49014502]
[1753153647077,10.49014502,202.21,202.15,36.49014502]
[1753153647383,10.49014502,202.21,202.15,10.49014502]
[1753153647904,5.66510928,202.22,202.16,10.49014502]
[1753153648077,37.2,202.24,202.18,10.49014502]
[1753153648282,52.63490364,202.24,202.18,10.49014502]
[1753153648487,10.49014502,202.21,202.16,26.0]
[1753153648685,11.21014502,202.2,202.14,10.49014502]
[1753153648890,37.2,202.19,202.14,10.49014502]
[1753153649713,37.2,202.19,202.15,10.49014502]
[1753153649889,37.2,202.22,202.18,10.49014502]
[1753153650083,37.2,202.22,202.19,10.49014502]
[1753153650278,37.2,202.22,202.16,26.0]
[1753153650279,37.92,202.22,202.16,26.0]
[1753153650589,0.72,202.21,202.16,15.43668841]
[1753153650896,37.2,202.22,202.18,10.49014502]
[1753153651085,42.14516706,202.22,202.17,10.49014502]
[1753153651500,37.2,202.22,202.17,10.49014502]
[1753153651882,42.86519273,202.22,202.17,10.49014502]
[1753153652299,42.14519273,202.22,202.17,10.49014502]
[1753153652603,37.2,202.22,202.18,10.49014502]
[1753153653112,37.2,202.22,202.17,10.49014502]
[1753153653286,37.2,202.22,202.15,4.94682166]
[1753153653287,37.2,202.22,202.18,10.49014502]
[1753153653789,10.49014502,202.19,202.14,88.6]
[1753153653998,10.49014502,202.19,202.12,36.49014502]
[1753153654206,0.72,202.21,202.17,10.49014502]
[1753153654384,37.18,202.21,202.18,10.49014502]
[1753153654580,11.21014502,202.24,202.18,10.49014502]
[1753153654888,11.21014502,202.24,202.15,4.94677477]
[1753153654889,52.61500977,202.23,202.17,10.49014502]
[1753153655109,37.18,202.23,202.18,10.49014502]
[1753153655402,10.49014502,202.21,202.15,10.49014502]
[1753153655720,11.21014502,202.2,202.14,10.49014502]
[1753153656018,47.67014502,202.19,202.13,10.49014502]
[1753153656586,4.94608764,202.18,202.13,10.49014502]
[1753153656822,4.94608764,202.18,202.11,10.52014502]
[1753153656823,11.21014502,202.17,202.11,10.52014502]
[1753153656987,10.49014502,202.14,202.11,0.03]
[1753153657193,47.67014502,202.14,202.11,0.03]
[1753153657402,48.39014502,202.14,202.11,0.03]
[1753153657914,11.21014502,202.13,202.11,0.03]
[1753153658212,10.49014502,202.12,202.11,0.03]
[1753153658436,0.72,202.16,202.11,15.46773767]
[1753153658711,0.72,202.15,202.11,0.03]
[1753153658886,11.21014502,202.15,202.11,0.03]
[1753153659089,37.18,202.17,202.11,10.52014502]
[1753153659412,37.18,202.17,202.13,10.49014502]
[1753153659726,0.72,202.16,202.11,0.03]
[1753153659932,0.72,202.16,202.12,10.49014502]
[1753153660100,37.18,202.17,202.12,10.49014502]
[1753153660401,0.72,202.16,202.12,10.49014502]
[1753153660596,0.72,202.16,202.11,10.52014502]
[1753153660597,5.6666492,202.16,202.11,10.52014502]
[1753153660798,10.49014502,202.14,202.11,0.03]
[1753153661029,10.49014502,202.12,202.11,0.03]
[1753153661233,27.27482899,202.12,202.11,0.03]
[1753153661734,27.99482899,202.12,202.11,0.03]
[1753153662436,65.15482899,202.12,202.11,0.03]
[1753153662644,70.10238489,202.12,202.11,0.03]
[1753153664430,71.71608489,202.12,202.11,0.03]
[1753153664637,71.71608489,202.12,202.11,1e-08]
[1753153667110,68.28021746,202.12,202.11,1e-08]
[1753153667738,24.06593987,202.12,202.11,1e-08]
[1753153667910,92.66651746,202.12,202.11,1e-08]
[1753153668837,29.50651746,202.12,202.11,1e-08]
[1753153669129,66.66651746,202.12,202.11,1e-08]
[1753153669338,29.50651746,202.12,202.11,1e-08]
[1753153669528,66.66651746,202.12,202.11,1e-08]
[1753153672105,71.99724259,202.12,202.11,1e-08]
[1753153672311,71.99724259,202.12,202.06,1e-08]
[1753153672312,4.94878012,202.07,202.06,1e-08]
[1753153672531,42.78468397,202.0,201.91,1.21018225]
[1753153672723,56.89323915,201.96,201.87,0.2]
[1753153672938,16.78468397,201.91,201.87,0.2]
[1753153673107,66.30968669,201.91,201.87,0.2]
[1753153673306,16.78468397,201.89,201.87,0.2]
[1753153673513,60.97896156,201.88,201.87,0.2]
[1753153673723,61.69896156,201.88,201.87,0.2]
[1753153673929,54.64468397,201.88,201.87,0.2]
[1753153674241,61.69896156,201.88,201.87,0.2]
[1753153674414,66.65239924,201.88,201.87,0.2]
[1753153675220,70.12826008,201.88,201.87,0.2]
[1753153675539,0.72,201.91,201.87,0.2]
[1753153675718,37.14,201.9,201.87,0.2]
[1753153676337,47.67013843,201.9,201.87,0.2]
[1753153676715,52.62317166,201.9,201.87,0.2]
[1753153677612,37.14,201.9,201.87,0.2]
[1753153677941,37.16,201.91,201.89,10.53013843]
[1753153678237,10.53013843,202.03,201.9,37.24013843]
[1753153678488,10.53013843,202.01,201.91,0.71]
[1753153678740,52.62037235,202.02,201.96,10.53013843]
[1753153678953,10.53013843,202.0,201.94,36.53013843]
[1753153679239,37.14,201.99,201.98,10.53013843]
[1753153679432,37.14,202.0,201.97,10.53013843]
[1753153679632,37.14,202.01,201.97,11.24013843]
[1753153679811,37.14,202.01,201.98,10.53013843]
[1753153680013,37.14,202.01,201.98,11.24013843]
[1753153680232,37.14,202.01,201.98,10.53013843]
[1753153680537,15.47900435,202.07,202.0,10.53013843]
[1753153680745,15.47900435,202.07,201.99,0.71]
[1753153680746,37.14,202.06,202.01,10.53013843]
[1753153680954,37.14,202.06,202.01,11.24013843]
[1753153681124,15.47866095,202.09,202.03,10.53013843]
[1753153681446,37.14,202.08,202.03,10.53013843]
[1753153681946,37.14,202.08,202.03,11.24013843]
[1753153682344,37.14,202.08,202.04,10.53013843]
[1753153682522,37.14,202.08,202.04,11.24013843]
[1753153683138,42.08857133,202.08,202.04,11.24013843]
[1753153683342,0.72,202.12,202.04,11.24013843]
[1753153683543,0.72,202.12,202.02,26.0]
[1753153683544,37.14,202.13,202.09,10.53013843]
[1753153683720,37.14,202.13,202.1,10.53013843]
[1753153684124,37.14,202.13,202.09,0.71]
[1753153684349,42.08754086,202.13,202.09,10.53013843]
[1753153684550,37.14,202.13,202.09,10.53013843]
[1753153684724,42.06704293,202.15,202.09,11.24013843]
[1753153685245,10.53013843,202.14,202.06,0.71]
[1753153685432,10.53013843,202.13,202.07,10.53013843]
[1753153685634,37.12,202.12,202.08,10.53013843]
[1753153685833,37.12,202.12,202.09,11.24013843]
[1753153686038,37.12,202.13,202.11,10.53013843]
[1753153686746,0.06,202.17,202.12,10.53013843]
[1753153686952,37.12,202.16,202.11,10.56013843]
[1753153687153,10.53013843,202.13,202.11,0.03]
[1753153687357,37.12,202.12,202.11,0.03]
[1753153687648,0.06,202.15,202.11,11.27013843]
[1753153687943,48.37013843,202.14,202.11,0.03]
[1753153688338,42.78719866,202.14,202.11,0.03]
[1753153690650,27.3148224,202.12,202.11,0.03]
[1753153690956,27.3148224,202.12,202.11,1e-08]
[1753153690957,53.3148224,202.12,202.11,1e-08]
[1753153691155,54.0348224,202.12,202.11,1e-08]
[1753153692181,37.1,202.12,202.11,1e-08]
[1753153692541,70.0823783,202.12,202.11,1e-08]
[1753153693656,0.78,202.15,202.11,1e-08]
[1753153693836,37.1,202.14,202.11,1e-08]
[1753153694259,37.1,202.14,202.12,11.19013843]
[1753153694466,0.06,202.15,202.12,99.13013843]
[1753153694767,0.06,202.15,202.13,11.19013843]
[1753153694972,0.06,202.15,202.14,10.53013843]
[1753153695137,0.06,202.15,202.14,89.26]
[1753153695333,0.06,202.15,202.14,99.79013843]
[1753153695538,0.06,202.15,202.14,99.13013843]
[1753153695738,0.06,202.15,202.14,99.79013843]
[1753153696369,0.06,202.15,202.14,89.26]
[1753153696533,0.06,202.17,202.16,42.78468397]
[1753153696738,0.06,202.21,202.2,26.0]
[1753153696940,0.06,202.26,202.2,36.53013843]
[1753153697152,0.06,202.26,202.24,10.53013843]
[1753153697357,0.06,202.26,202.25,10.53013843]
[1753153697558,0.06,202.26,202.25,0.66]
[1753153697756,0.06,202.26,202.25,11.19013843]
[1753153698064,0.06,202.26,202.25,37.19013843]
[1753153698440,0.06,202.3,202.29,10.53013843]
[1753153699055,0.06,202.3,202.29,0.66]
[1753153699755,0.06,202.3,202.29,11.19013843]
[1753153700474,0.06,202.3,202.29,5.60339809]
[1753153700767,0.06,202.3,202.29,126.32]
[1753153700939,0.06,202.3,202.29,158.57822049]
[1753153701469,0.06,202.37,202.34,26.0]
[1753153701639,0.06,202.37,202.36,36.53013843]
[1753153701839,0.06,202.37,202.35,37.04]
[1753153701840,0.06,202.37,202.34,88.6]
[1753153702052,0.06,202.37,202.36,37.19013843]
[1753153702536,0.06,202.37,202.36,184.55651048]
[1753153702741,0.06,202.42,202.36,184.55651048]
[1753153702966,0.06,202.42,202.41,10.53013843]
[1753153703272,0.06,202.42,202.41,178.9548224]
[1753153703486,0.06,202.42,202.41,179.6148224]
[1753153703649,0.06,202.43,202.42,43.93806083]
[1753153703847,0.06,202.43,202.42,133.19806083]
[1753153704250,0.06,202.46,202.45,42.78468397]
[1753153704454,0.1,202.47,202.46,16.78468397]
[1753153704785,37.74,202.64,202.53,26.0]
[1753153705099,12.39518981,202.68,202.53,26.0]
[1753153705100,0.06,202.68,202.57,26.0]
[1753153705385,0.06,202.68,202.62,10.53013843]
[1753153705757,0.06,202.68,202.62,11.19013843]
[1753153706187,0.06,202.68,202.62,10.53013843]
[1753153706489,0.06,202.68,202.62,11.19013843]
[1753153706685,0.06,202.68,202.62,16.12548538]
[1753153706862,0.06,202.68,202.62,53.9748224]
[1753153707489,0.06,202.68,202.62,142.5748224]
[1753153707668,0.06,202.68,202.62,116.5748224]
[1753153708263,0.06,202.68,202.62,106.04468397]
[1753153708581,0.06,202.68,202.66,26.0]
[1753153708898,11.31013843,202.67,202.61,10.53013843]
[1753153709069,10.53013843,202.66,202.59,10.53013843]
[1753153709271,10.53013843,202.6,202.49,0.66]
[1753153709458,26.72,202.65,202.53,10.53013843]
[1753153709459,0.72,202.59,202.53,10.53013843]
[1753153709657,11.25013843,202.62,202.55,10.53013843]
[1753153710175,10.53013843,202.57,202.51,10.53013843]
[1753153710371,11.25013843,202.58,202.51,10.53013843]
[1753153710577,10.53013843,202.6,202.54,10.53013843]
[1753153710958,4.93585798,202.6,202.54,10.53013843]
[1753153711270,15.46599641,202.6,202.54,10.53013843]
[1753153711579,0.72,202.62,202.57,10.53013843]
[1753153711580,5.6555142,202.62,202.57,10.53013843]
[1753153711767,4.9355142,202.62,202.57,10.53013843]
[1753153711969,0.72,202.61,202.53,36.53013843]
[1753153712187,10.53013843,202.6,202.53,36.53013843]
[1753153712380,10.53013843,202.59,202.53,36.53013843]
[1753153712786,10.53013843,202.57,202.5,36.98]
[1753153712992,10.53013843,202.55,202.5,36.98]
[1753153713491,10.53013843,202.53,202.47,10.53013843]
[1753153713686,10.53013843,202.53,202.47,36.53013843]
[1753153714384,17.27712508,202.58,202.52,10.53013843]
[1753153714385,10.53013843,202.58,202.52,10.53013843]
[1753153714561,5.65608091,202.59,202.46,47.49013843]
[1753153714562,10.53013843,202.53,202.46,47.49013843]
[1753153714763,15.46833589,202.51,202.43,0.66]
[1753153714965,10.53013843,202.48,202.42,10.53013843]
[1753153715272,15.46833589,202.51,202.44,10.53013843]
[1753153715470,15.46833589,202.51,202.45,10.53013843]
[1753153715872,10.53013843,202.51,202.45,10.53013843]
[1753153716464,10.53013843,202.52,202.46,10.53013843]
[1753153716675,0.72,202.53,202.48,10.53013843]
[1753153717388,10.53013843,202.54,202.48,10.53013843]
[1753153717593,0.72,202.55,202.5,10.53013843]
[1753153717889,10.53013843,202.57,202.51,10.53013843]
[1753153718292,10.53013843,202.55,202.49,10.53013843]
[1753153718478,10.53013843,202.56,202.49,10.53013843]
[1753153718674,10.53013843,202.56,202.5,10.53013843]
[1753153718876,10.53013843,202.57,202.51,10.53013843]
[1753153719091,10.53013843,202.59,202.53,10.53013843]
[1753153719591,0.68,202.61,202.55,10.53013843]
[1753153719769,0.06,202.68,202.55,10.53013843]
[1753153719770,0.68,202.66,202.6,10.53013843]
[1753153719967,0.68,202.66,202.61,10.53013843]
[1753153720389,0.68,202.66,202.62,10.53013843]
[1753153720595,0.06,202.67,202.64,10.53013843]
[1753153720768,0.06,202.67,202.62,36.94]
[1753153721098,0.68,202.66,202.53,10.53013843]
[1753153721272,10.53013843,202.64,202.57,10.53013843]
[1753153721592,15.46475476,202.65,202.59,10.53013843]
[1753153721793,16.14451854,202.66,202.59,10.53013843]
[1753153721974,0.06,202.67,202.63,10.53013843]
[1753153722289,0.06,202.67,202.57,0.7]
[1753153722500,0.68,202.66,202.59,36.53013843]
[1753153722685,0.06,202.67,202.64,10.53013843]
[1753153722880,0.06,202.67,202.6,62.94]
[1753153723084,0.06,202.67,202.64,10.53013843]
[1753153723540,10.53013843,202.65,202.52,107.42226103]
[1753153723798,0.68,202.66,202.64,10.53013843]
[1753153723999,0.06,202.67,202.65,10.53013843]
[1753153724176,0.06,202.67,202.66,10.53013843]
[1753153724372,0.06,202.67,202.63,26.7]
[1753153724584,0.06,202.67,202.64,10.53013843]
[1753153724884,0.06,202.67,202.66,27.3148224]
[1753153725200,0.06,202.67,202.66,53.80825968]
[1753153725492,0.06,202.67,202.66,33.44263252]
[1753153725984,0.06,202.67,202.66,1.19343728]
[1753153726185,0.06,202.67,202.66,47.45013843]
[1753153727173,0.06,202.67,202.66,36.92]
[1753153727379,0.06,202.67,202.66,47.45013843]
[1753153727607,0.06,202.67,202.66,70.36263252]
[1753153728603,0.06,202.67,202.66,59.83249409]
[1753153728814,1e-08,202.67,202.66,164.86709524]
[1753153730278,1e-08,202.67,202.66,76.26709524]
[1753153730704,1e-08,202.67,202.65,10.53013843]
[1753153730912,1e-08,202.67,202.64,10.53013843]
[1753153731111,1e-08,202.67,202.62,36.9]
[1753153731112,1e-08,202.67,202.66,27.3148224]
[1753153731284,1e-08,202.67,202.66,69.14919524]
[1753153731484,1e-08,202.67,202.66,69.84919524]
[1753153731879,1e-08,202.67,202.66,59.31905681]
[1753153732095,1e-08,202.67,202.66,69.84919524]
[1753153733384,1e-08,202.67,202.66,10.53013843]
[1753153733590,1e-08,202.67,202.64,10.53013843]
[1753153733894,0.68,202.66,202.6,10.53013843]
[1753153734198,0.68,202.66,202.57,4.93656513]
[1753153734199,1e-08,202.67,202.62,10.53013843]
[1753153734384,1e-08,202.67,202.63,10.53013843]
[1753153735503,1e-08,202.67,202.62,10.53013843]
[1753153735701,10.53013843,202.63,202.53,0.03]
[1753153736003,26.0,202.65,202.53,0.03]
[1753153736004,10.53013843,202.56,202.53,0.03]
[1753153736195,10.53013843,202.56,202.53,26.03]
[1753153736382,0.68,202.55,202.53,0.03]
[1753153736582,10.53013843,202.54,202.53,0.03]
[1753153736805,0.68,202.54,202.53,0.03]
[1753153736979,0.68,202.57,202.53,0.03]
[1753153737181,11.21013843,202.57,202.53,0.03]
[1753153737395,15.46682278,202.57,202.53,0.03]
[1753153737710,10.53013843,202.55,202.53,0.03]
[1753153738015,0.68,202.56,202.53,0.03]
[1753153738308,0.68,202.54,202.53,0.03]
[1753153738536,10.53013843,202.57,202.53,0.03]
[1753153738808,0.68,202.56,202.53,0.03]
[1753153739188,10.53013843,202.58,202.53,0.03]
[1753153739597,11.21013843,202.59,202.53,10.56013843]
[1753153739797,0.68,202.59,202.54,10.53013843]
[1753153740105,11.21013843,202.58,202.53,0.03]
[1753153740311,10.53013843,202.57,202.53,0.03]
[1753153740619,0.68,202.6,202.53,10.56013843]
[1753153740785,0.68,202.6,202.55,10.53013843]
[1753153740981,10.53013843,202.56,202.53,0.03]
[1753153741206,11.21013843,202.55,202.53,0.03]
[1753153741590,10.53013843,202.54,202.53,0.03]
[1753153741788,0.68,202.54,202.53,0.03]
[1753153741999,10.53013843,202.56,202.53,0.03]
[1753153742401,10.53013843,202.58,202.53,0.03]
[1753153742706,10.53013843,202.62,202.55,10.53013843]
[1753153742920,0.68,202.63,202.58,10.53013843]
[1753153743916,10.53013843,202.63,202.55,114.6]
[1753153744096,10.53013843,202.59,202.55,114.6]
[1753153744300,10.53013843,202.56,202.53,0.03]
[1753153744805,11.21013843,202.56,202.53,0.03]
[1753153745389,10.53013843,202.54,202.53,0.03]
[1753153745818,4.93778392,202.52,202.44,0.03]
[1753153746059,0.68,202.53,202.45,10.53013843]
[1753153746185,10.53013843,202.51,202.45,10.53013843]
[1753153746531,10.53013843,202.49,202.44,0.03]
[1753153747027,11.21013843,202.49,202.44,0.03]
[1753153748032,16.14865391,202.49,202.44,0.03]
[1753153749024,0.68,202.49,202.44,0.03]
[1753153749189,10.53013843,202.51,202.44,10.56013843]
[1753153749388,36.92,202.53,202.44,10.56013843]
[1753153749389,10.53013843,202.49,202.44,0.03]
[1753153749590,11.24013843,202.49,202.44,0.03]
[1753153749837,16.78468397,202.48,202.44,0.03]
[1753153750028,10.53013843,202.45,202.44,0.03]
[1753153750647,11.24013843,202.45,202.44,0.03]
[1753153751937,11.24013843,202.45,202.39,26.03286594]
[1753153752164,10.53013843,202.43,202.39,26.03286594]
[1753153752870,10.53013843,202.43,202.39,21.092]
[1753153753160,10.53013843,202.4,202.33,11.22013843]
[1753153753358,10.53013843,202.39,202.33,0.69]
[1753153753589,10.53013843,202.39,202.33,11.22013843]
[1753153753995,10.53013843,202.39,202.36,26.0]
[1753153754163,0.71,202.43,202.33,17.29826672]
[1753153754474,10.53013843,202.44,202.38,10.53013843]
[1753153754680,36.92,202.45,202.39,10.53013843]
[1753153754989,10.53013843,202.44,202.38,10.53013843]
[1753153756186,10.53013843,202.44,202.38,15.47110872]
[1753153756386,10.53013843,202.43,202.37,26.0]
[1753153756584,10.53013843,202.41,202.38,26.0]
[1753153756773,11.24013843,202.44,202.38,26.0]
[1753153756975,10.53013843,202.44,202.38,36.53013843]
[1753153757196,10.53013843,202.44,202.38,26.0]
[1753153757492,10.53013843,202.42,202.38,26.0]
[1753153757693,11.24013843,202.41,202.38,26.0]
[1753153757874,36.92,202.46,202.38,26.0]
[1753153757875,10.53013843,202.43,202.38,26.0]
[1753153758179,10.53013843,202.43,202.38,114.6]
[1753153758372,10.53013843,202.45,202.39,15.47109401]
[1753153758693,10.53013843,202.51,202.42,26.0]
[1753153758892,11.24013843,202.52,202.46,10.53013843]
[1753153759090,11.24013843,202.52,202.46,11.22013843]
[1753153759091,10.53013843,202.52,202.46,11.22013843]
[1753153759299,0.71,202.55,202.48,10.53013843]
[1753153759588,11.24013843,202.55,202.49,10.53013843]
[1753153759798,11.24013843,202.55,202.45,114.6]
[1753153759799,10.53013843,202.51,202.45,114.6]
[1753153759971,10.53013843,202.51,202.45,125.13013843]
[1753153760365,4.93754011,202.53,202.45,125.13013843]
[1753153760570,10.53013843,202.5,202.45,114.6]
[1753153760787,10.53013843,202.48,202.41,10.53013843]
[1753153760996,10.53013843,202.47,202.41,26.0]
[1753153761418,10.53013843,202.46,202.41,26.0]
[1753153761587,11.24013843,202.46,202.41,26.0]
[1753153761984,10.53013843,202.44,202.39,88.6]
[1753153762210,11.24013843,202.43,202.39,88.6]
[1753153762505,10.53013843,202.44,202.39,4.94084483]
[1753153762708,10.53013843,202.48,202.42,10.53013843]
[1753153763006,10.53013843,202.47,202.41,10.53013843]
[1753153763891,10.53013843,202.48,202.42,15.47036172]
[1753153764499,10.53013843,202.48,202.42,104.07036172]
[1753153764692,48.16013843,202.49,202.43,10.53013843]
[1753153765096,48.16013843,202.49,202.42,93.54022329]
[1753153765303,10.53013843,202.47,202.42,93.54022329]
[1753153765496,0.71,202.52,202.42,5.63022329]
[1753153765701,10.53013843,202.51,202.44,10.53013843]
[1753153765998,10.53013843,202.51,202.45,4.93949123]
[1753153766422,10.53013843,202.49,202.44,4.93961519]
[1753153766716,11.24013843,202.49,202.44,4.93961519]
[1753153767612,10.53013843,202.51,202.45,26.0]
[1753153767997,10.53013843,202.49,202.45,26.0]
[1753153768198,11.24013843,202.49,202.45,26.0]
[1753153768490,11.24013843,202.49,202.44,26.0]
[1753153768698,10.53013843,202.49,202.43,4.93997925]
[1753153769026,10.53013843,202.46,202.41,30.94025013]
[1753153769316,0.71,202.48,202.41,30.94025013]
[1753153769515,10.53013843,202.47,202.41,41.47038856]
[1753153770001,10.53013843,202.45,202.38,10.53013843]
[1753153770200,10.53013843,202.45,202.38,36.53013843]
[1753153770402,10.53013843,202.44,202.38,30.94119972]
[1753153770601,10.53013843,202.41,202.35,10.53013843]
[1753153770809,10.53013843,202.49,202.4,10.53013843]
[1753153771016,10.53013843,202.49,202.42,10.53013843]
[1753153771202,10.53013843,202.49,202.42,99.13013843]
[1753153771401,10.53013843,202.45,202.42,88.6]
[1753153771600,10.53013843,202.46,202.42,88.6]
[1753153771810,11.24013843,202.46,202.42,88.6]
[1753153772727,10.53013843,202.49,202.43,10.53013843]
[1753153772900,3.9786826,202.62,202.48,26.0]
[1753153773106,5.85307939,202.67,202.61,10.53013843]
[1753153773408,1e-08,202.67,202.64,10.53013843]
[1753153773729,10.53013843,202.66,202.54,0.49372963]
[1753153773904,10.53013843,202.63,202.57,26.0]
[1753153774106,0.1,202.7,202.65,26.0]
[1753153774298,0.1,202.7,202.62,10.53013843]
[1753153774299,0.1,202.7,202.69,10.53013843]